fUSD/lending_fUSD_20241117
["ID","MTS","AMOUNT","RATE_DAILY","PERIOD"]
[342418190,1731840644154,-150.0,9.948e-05,2]
[342418191,1731840644164,-150.0,9.961e-05,2]
[342418192,1731840644173,-150.0,9.961e-05,2]
[342418193,1731840644182,-150.0,9.963e-05,2]
[342418194,1731840644193,-150.0,9.964e-05,2]
[342418195,1731840644204,-150.0,9.969e-05,2]
[342418196,1731840644214,-1500.0,9.973e-05,2]
[342418197,1731840644224,-400.8469108,9.988e-05,2]
[342418198,1731840644233,-510.5939763,9.988e-05,2]
[342418199,1731840644242,-4667.55974159,9.99e-05,2]
[342418200,1731840644252,-4667.5597415,9.99e-05,2]
[342418201,1731840644260,-4667.5597415,9.99e-05,2]
[342418202,1731840644269,-4667.5597415,9.99e-05,2]
[342418203,1731840644279,-4667.5597415,9.99e-05,2]
[342418204,1731840644288,-4667.5597415,9.99e-05,2]
[342418205,1731840644297,-4667.5597415,9.99e-05,2]
[342418206,1731840644306,-4667.5597415,9.99e-05,2]
[342418207,1731840644315,-350.8127449,9.993e-05,2]
[342418208,1731840644324,-300.778579,9.993e-05,2]
[342418209,1731840644334,-619.4121653,9.993e-05,2]
[342418210,1731840644343,-728.2303543,9.993e-05,2]
[342418211,1731840644351,-150.0,9.995e-05,2]
[342418212,1731840644360,-532.65,9.998e-05,2]
[342418213,1731840644369,-437950.73073201,9.999e-05,2]
[342418214,1731840644378,-8941.92822728,9.999e-05,2]
[342418215,1731840644387,-1256.0,9.999e-05,2]
[342418216,1731840644396,-563.0,9.999e-05,2]
[342418217,1731840644405,-150.701,9.999e-05,2]
[342418218,1731840644414,-1993.0,9.999e-05,2]
[342418219,1731840644423,-628.0,9.999e-05,2]
[342418220,1731840644432,-1925.0,9.999e-05,2]
[342418221,1731840644441,-560.0,9.999e-05,2]
[342418222,1731840644451,-1260.0,9.999e-05,2]
[342418223,1731840644460,-814.0,9.999e-05,2]
[342418224,1731840644469,-3746.0,9.999e-05,2]
[342418225,1731840644478,-3491.0,9.999e-05,2]
[342418226,1731840644488,-921.0,9.999e-05,2]
[342418227,1731840644497,-1162.507,9.999e-05,2]
[342418228,1731840644507,-5954.551,9.999e-05,2]
[342418229,1731840644516,-13647.0,9.999e-05,2]
[342418230,1731840644525,-151.694,9.999e-05,2]
[342418231,1731840644537,-232062.22697818,9.999e-05,2]
[342418232,1731840644554,-360.795,9.999e-05,2]
[342418233,1731840646411,-150.0,9.999e-05,2]
[342418234,1731840646420,-1692.93546332,9.999e-05,2]
[342418235,1731840646432,-2419.7883,9.999e-05,2]
[342418236,1731840646443,-6167.90000008,9.999e-05,2]
[342418237,1731840646455,-47462.9399999,9.999e-05,2]
[342418238,1731840646515,-4951.80643189,9.999e-05,2]
[342418239,1731840646526,-6830.26350807,9.999e-05,2]
[342418240,1731840646538,-179428.00459604,9.999e-05,2]
[342418242,1731840646870,-19894.79139986,9.999e-05,2]
[342418243,1731840691698,2611.18,8.219e-05,2]
[342418244,1731840957339,250.0,8.432e-05,2]
[342418246,1731840994293,166.16,8.39e-05,2]
[342418248,1731841110053,250.0,8.39e-05,2]
[342418249,1731841160502,2000.0,8.386e-05,2]
[342418252,1731841243697,250.0,8.425e-05,2]
[342418253,1731841265390,1000.0,8.425e-05,2]
[342418254,1731841406172,10277.53468264,8.278e-05,2]
[342418255,1731841406199,13622.46531736,8.278e-05,2]
[342418256,1731841498069,273.9,8.28e-05,2]
[342418257,1731841509119,252.18586773,8.239e-05,2]
[342418258,1731841523735,1781.69,8.319e-05,2]
[342418259,1731841553309,2480.62,8.219e-05,2]
[342418260,1731841570962,261.89,8.396e-05,2]
[342418261,1731841623335,250.0,8.375e-05,2]
[342418278,1731841805115,162.96,8.38e-05,2]
[342418290,1731841831625,-150.0,8.799e-05,2]
[342418291,1731841831635,-300.0,8.799e-05,2]
[342418292,1731841831645,-501.245925,8.8e-05,2]
[342418293,1731841831656,-298.59,8.8e-05,2]
[342418294,1731841831668,-2727.3619961,8.8e-05,2]
[342418295,1731841831693,-330.10978,8.8e-05,2]
[342418296,1731841831704,-11712.40281886,8.8e-05,2]
[342418297,1731841831715,-881.08675534,8.8e-05,2]
[342418298,1731841831764,-909.33837036,8.8e-05,2]
[342418299,1731841831776,-445.82500683,8.8e-05,2]
[342418300,1731841831833,-1951.46334751,8.8e-05,2]
[342418301,1731841831842,-2277.672,8.8e-05,2]
[342418302,1731841831852,-900.1402,8.8e-05,2]
[342418303,1731841831861,-161.34,8.863e-05,2]
[342418314,1731841832130,-161.34,8.867e-05,2]
[342418316,1731841832144,-161.34,8.871e-05,2]
[342418318,1731841832154,-161.34,8.875e-05,2]
[342418320,1731841832165,-161.34,8.879e-05,2]
[342418321,1731841832177,-161.34,8.883e-05,2]
[342418323,1731841832186,-161.34,8.887e-05,2]
[342418325,1731841832195,-2794.10213123,8.89e-05,2]
[342418327,1731841832206,-161.34,8.891e-05,2]
[342418329,1731841832215,-161.34,8.895e-05,2]
[342418331,1731841832225,-161.34,8.899e-05,2]
[342418333,1731841832234,-4073.0908,8.9e-05,2]
[342418335,1731841832244,-258665.6745,8.9e-05,2]
[342418337,1731841832254,-3782.618,8.9e-05,2]
[342418339,1731841832263,-500.0,8.9e-05,2]
[342418341,1731841832272,-1003.0,8.9e-05,2]
[342418343,1731841832281,-161.34,8.903e-05,2]
[342418345,1731841832294,-161.34,8.907e-05,2]
[342418347,1731841832303,-538.11,8.937e-05,2]
[342418349,1731841832312,-1210.16,9.041e-05,2]
[342418351,1731841832321,-865.35,9.041e-05,2]
[342418353,1731841832331,-300.0,9.178e-05,2]
[342418355,1731841832340,-967.34,9.178e-05,2]
[342418357,1731841832349,-351.48,9.178e-05,2]
[342418359,1731841832358,-261.89,9.445e-05,2]
[342418361,1731841832368,-1000.0,9.478e-05,2]
[342418363,1731841832377,-167.03,9.504e-05,2]
[342418365,1731841832387,-200.0,9.6e-05,2]
[342418367,1731841832396,-150.0,9.67e-05,2]
[342418369,1731841832405,-255.0,9.679e-05,2]
[342418371,1731841832414,-420.0,9.679e-05,2]
[342418373,1731841832423,-150.0,9.735e-05,2]
[342418375,1731841832432,-1500.0,9.743e-05,2]
[342418377,1731841832441,-150.0,9.746e-05,2]
[342418379,1731841832451,-162.57645101,9.749e-05,2]
[342418381,1731841832459,-150.0,9.779e-05,2]
[342418383,1731841832468,-150.0,9.78e-05,2]
[342418385,1731841832477,-150.0,9.782e-05,2]
[342418387,1731841832486,-150.0,9.787e-05,2]
[342418389,1731841832496,-150.0,9.79e-05,2]
[342418391,1731841832505,-150.0,9.792e-05,2]
[342418393,1731841832516,-150.0,9.794e-05,2]
[342418395,1731841832525,-150.0,9.797e-05,2]
[342418396,1731841832538,-150.0,9.813e-05,2]
[342418399,1731841832548,-150.0,9.825e-05,2]
[342418401,1731841832558,-150.0,9.835e-05,2]
[342418403,1731841832567,-1993.0,9.841e-05,2]
[342418405,1731841832576,-628.0,9.841e-05,2]
[342418407,1731841832586,-560.0,9.841e-05,2]
[342418409,1731841832595,-1925.0,9.841e-05,2]
[342418411,1731841832605,-3746.0,9.841e-05,2]
[342418413,1731841832614,-1260.0,9.841e-05,2]
[342418415,1731841832623,-814.0,9.841e-05,2]
[342418416,1731841832632,-3491.0,9.841e-05,2]
[342418418,1731841832642,-921.0,9.841e-05,2]
[342418420,1731841832651,-1161.0,9.841e-05,2]
[342418422,1731841832661,-5936.0,9.841e-05,2]
[342418425,1731841832670,-150.0,9.841e-05,2]
[342418426,1731841832679,-13634.0,9.841e-05,2]
[342418429,1731841832689,-150.0,9.844e-05,2]
[342418431,1731841832698,-417.2126,9.845e-05,2]
[342418432,1731841832707,-150.0,9.847e-05,2]
[342418434,1731841832717,-1500.0,9.85e-05,2]
[342418437,1731841832726,-150.0,9.856e-05,2]
[342418439,1731841832737,-150.0,9.865e-05,2]
[342418441,1731841832746,-1500.0,9.867e-05,2]
[342418443,1731841832756,-150.0,9.871e-05,2]
[342418444,1731841832765,-150.0,9.879e-05,2]
[342418446,1731841832775,-150.0,9.895e-05,2]
[342418448,1731841832789,-1000.0,9.899e-05,2]
[342418451,1731841832799,-150.0,9.905e-05,2]
[342418452,1731841832809,-150.0,9.915e-05,2]
[342418455,1731841832819,-500.0,9.919e-05,2]
[342418456,1731841832828,-1330.351,9.92e-05,2]
[342418458,1731841832838,-182.29,9.92e-05,2]
[342418461,1731841832847,-150.0,9.927e-05,2]
[342418463,1731841832856,-1513.36606587,9.928e-05,2]
[342418464,1731841832865,-150.0,9.933e-05,2]
[342418466,1731841832874,-150.0,9.934e-05,2]
[342418467,1731841832883,-150.0,9.942e-05,2]
[342418469,1731841832892,-150.0,9.953e-05,2]
[342418471,1731841832901,-150.0,9.954e-05,2]
[342418472,1731841832910,-150.0,9.964e-05,2]
[342418474,1731841832919,-1500.0,9.965e-05,2]
[342418476,1731841832929,-1500.0,9.983e-05,2]
[342418478,1731841832938,-10723.27228148,9.99e-05,2]
[342418480,1731841832948,-10723.27228148,9.99e-05,2]
[342418481,1731841832957,-10723.27228148,9.99e-05,2]
[342418483,1731841832967,-10723.27228148,9.99e-05,2]
[342418485,1731841832977,-10723.27228148,9.99e-05,2]
[342418487,1731841832986,-10723.27228148,9.99e-05,2]
[342418488,1731841832995,-10723.27228148,9.99e-05,2]
[342418490,1731841833005,-666.1904631,9.99e-05,2]
[342418492,1731841833014,-155.2139642,9.99e-05,2]
[342418494,1731841833025,-352.2407709,9.991e-05,2]
[342418495,1731841833036,-400.5178089,9.993e-05,2]
[342418497,1731841833047,-448.7948469,9.993e-05,2]
[342418499,1731841833056,-155.2139642,9.993e-05,2]
[342418500,1731841833066,-155.2139642,9.993e-05,2]
[342418502,1731841833076,-407.31029295,9.997e-05,2]
[342418504,1731841833088,-1076.0,9.997e-05,2]
[342418506,1731841833105,-5249.49995,9.997e-05,2]
[342418508,1731841833117,-307.8334,9.997e-05,2]
[342418510,1731841833131,-496.86092717,9.997e-05,2]
[342418757,1731841837761,-1092.0,9.841e-05,2]
[342418758,1731841837771,-35243.77017191,9.997e-05,2]
[342418759,1731841837782,-5382.296625,9.997e-05,2]
[342418760,1731841837797,-7399.88822,9.997e-05,2]
[342418761,1731841837831,-537.13002854,9.997e-05,2]
[342418762,1731841837843,-21210.61658002,9.997e-05,2]
[342418763,1731841838015,-3700.0001,9.997e-05,2]
[342418764,1731841838027,-255.84694983,9.997e-05,2]
[342418765,1731841838039,-313.88,9.997e-05,2]
[342418766,1731841838095,-1471.71454044,9.997e-05,2]
[342418768,1731841838105,-807.50000199,9.998e-05,2]
[342418770,1731841838114,-558.01,9.998e-05,2]
[342418772,1731841838123,-150.0,9.999e-05,2]
[342418774,1731841838132,-335.28847854,9.999e-05,2]
[342418889,1731841839540,-920.71152146,9.999e-05,2]
[342418891,1731841839549,-137.34544854,9.999e-05,2]
[342418902,1731841839641,-425.65455146,9.999e-05,2]
[342418904,1731841839651,-7541.31669644,9.999e-05,2]
[342418913,1731841839724,-3326.92405583,9.999e-05,2]
[342418915,1731841839736,-310967.50354292,9.999e-05,2]
[342419113,1731841842775,-474679.50698829,9.999e-05,2]
[342419114,1731841842786,-1831.9534897,9.999e-05,2]
[342419115,1731841842800,-26775.12457239,9.999e-05,2]
[342419116,1731841842944,-1690.40872,9.999e-05,2]
[342419117,1731841842956,-3859.31274436,9.999e-05,2]
[342419118,1731841842967,-2035.54674261,9.999e-05,2]
[342419154,1731841845525,-28837.5,9.999e-05,2]
[342419167,1731841845590,-2800.3606245,9.999e-05,2]
[342419171,1731841845602,-2961.57343548,9.999e-05,2]
[342419177,1731841845650,-5284.50005,9.999e-05,2]
[342419179,1731841845663,-14951.42181964,9.999e-05,2]
[342419180,1731841845722,-431.885,9.999e-05,2]
[342419181,1731841845783,-12137.62501854,9.999e-05,2]
[342419182,1731841845844,-42755.39445596,9.999e-05,2]
[342419183,1731841845856,-4026.00649308,9.999e-05,2]
[342419184,1731841845869,-166180.99508172,9.999e-05,2]
[342419185,1731841845879,-4565.94,9.999e-05,2]
[342419186,1731841845888,-2000.0,9.999e-05,2]
[342419187,1731841845898,-200.0,9.999e-05,2]
[342419188,1731841845908,-2000.0,9.999e-05,2]
[342419189,1731841845918,-200.0,9.999e-05,2]
[342419190,1731841845928,-150.0,9.999e-05,2]
[342419191,1731841845938,-2000.0,9.999e-05,2]
[342419192,1731841845947,-200.0,9.999e-05,2]
[342419193,1731841845957,-2000.0,9.999e-05,2]
[342419194,1731841845966,-200.0,9.999e-05,2]
[342419195,1731841845977,-222.0,9.999e-05,2]
[342419196,1731841845986,-199.0543399,9.999e-05,2]
[342419198,1731841845996,-222.0,9.999e-05,2]
[342419200,1731841846005,-356892.5882756,0.0001,2]
[342419202,1731841846016,-784.98321501,0.0001,2]
[342420015,1731842216279,2519.54,8.219e-05,2]
[342420018,1731842533267,-350.658,8.8e-05,2]
[342420019,1731842533288,-500.0,8.826e-05,2]
[342420020,1731842533310,-19149.342,8.835e-05,2]
[342420022,1731842956069,2393.56,8.219e-05,2]
[342420030,1731843031719,-430.49,8.81e-05,2]
[342420031,1731843031729,-156.64,8.824e-05,2]
[342420032,1731843031739,-528.61,8.825e-05,2]
[342420034,1731843031748,-4750.658,8.835e-05,2]
[342420036,1731843031757,-523.35,8.837e-05,2]
[342420038,1731843031766,-1000.0,8.847e-05,2]
[342420039,1731843031776,-5604.84,8.847e-05,2]
[342420040,1731843031785,-250.0,8.848e-05,2]
[342420041,1731843031794,-178.162,8.848e-05,2]
[342420042,1731843031806,-71.838,8.848e-05,2]
[342420043,1731843031815,-389.01,8.854e-05,2]
[342420044,1731843031824,-29.3348127,8.857e-05,2]
[342420045,1731843031836,-688.2951873,8.857e-05,2]
[342420046,1731843031845,-212.37,8.859e-05,2]
[342420047,1731843031855,-898.53,8.864e-05,2]
[342420048,1731843031864,-250.0,9.115e-05,2]
[342420049,1731843031874,-167.0,9.121e-05,2]
[342420050,1731843031883,-185.29,9.36e-05,2]
[342420051,1731843031892,-5352.0,9.606e-05,2]
[342420052,1731843031901,-253.11,9.67e-05,2]
[342420053,1731843031911,-150.0,9.698e-05,2]
[342420054,1731843031920,-150.0,9.723e-05,2]
[342420055,1731843031929,-150.0,9.724e-05,2]
[342420056,1731843031939,-150.0,9.728e-05,2]
[342420057,1731843031948,-150.0,9.731e-05,2]
[342420058,1731843031958,-150.0,9.731e-05,2]
[342420059,1731843031967,-150.0,9.743e-05,2]
[342420060,1731843031977,-150.0,9.745e-05,2]
[342420061,1731843031989,-150.0,9.745e-05,2]
[342420062,1731843031998,-150.0,9.746e-05,2]
[342420063,1731843032007,-150.0,9.756e-05,2]
[342420064,1731843032016,-150.0,9.756e-05,2]
[342420065,1731843032026,-150.0,9.771e-05,2]
[342420066,1731843032035,-150.0,9.771e-05,2]
[342420067,1731843032044,-150.0,9.776e-05,2]
[342420068,1731843032054,-150.0,9.776e-05,2]
[342420069,1731843032063,-150.0,9.787e-05,2]
[342420070,1731843032072,-150.0,9.795e-05,2]
[342420071,1731843032082,-150.0,9.795e-05,2]
[342420072,1731843032091,-150.0,9.802e-05,2]
[342420073,1731843032100,-150.0,9.804e-05,2]
[342420074,1731843032109,-150.0,9.805e-05,2]
[342420075,1731843032119,-150.0,9.806e-05,2]
[342420076,1731843032128,-150.0,9.818e-05,2]
[342420078,1731843032138,-150.0,9.822e-05,2]
[342420080,1731843032148,-150.0,9.831e-05,2]
[342420082,1731843032158,-150.0,9.837e-05,2]
[342420084,1731843032167,-150.0,9.84e-05,2]
[342420085,1731843032177,-150.0,9.845e-05,2]
[342420086,1731843032186,-150.0,9.849e-05,2]
[342420087,1731843032195,-260.20126181,9.851e-05,2]
[342420088,1731843032205,-150.0,9.856e-05,2]
[342420089,1731843032214,-150.0,9.856e-05,2]
[342420090,1731843032223,-150.0,9.858e-05,2]
[342420091,1731843032233,-150.0,9.86e-05,2]
[342420092,1731843032244,-150.0,9.863e-05,2]
[342420093,1731843032254,-150.0,9.868e-05,2]
[342420094,1731843032264,-150.0,9.872e-05,2]
[342420096,1731843032273,-150.0,9.878e-05,2]
[342420098,1731843032283,-5607.59984648,9.88e-05,2]
[342420101,1731843032305,-1073.68116025,9.88e-05,2]
[342420130,1731843032526,-13.7528716,9.88e-05,2]
[342420134,1731843032602,-150.0,9.88e-05,2]
[342420136,1731843032612,-150.0,9.881e-05,2]
[342420138,1731843032621,-150.0,9.883e-05,2]
[342420139,1731843032630,-150.0,9.885e-05,2]
[342420141,1731843032639,-150.0,9.887e-05,2]
[342420143,1731843032649,-133.28240951,9.892e-05,2]
[342420146,1731843032662,-16.71759049,9.892e-05,2]
[342420148,1731843032672,-150.0,9.895e-05,2]
[342420150,1731843032682,-150.0,9.896e-05,2]
[342420152,1731843032691,-400.0,9.9e-05,2]
[342420154,1731843032700,-150.0,9.9e-05,2]
[342420156,1731843032709,-47.23405856,9.904e-05,2]
[342420158,1731843032721,-102.76594144,9.904e-05,2]
[342420160,1731843032730,-150.0,9.906e-05,2]
[342420162,1731843032741,-150.0,9.908e-05,2]
[342420164,1731843032753,-150.0,9.909e-05,2]
[342420166,1731843032762,-430.49,9.911e-05,2]
[342420168,1731843032771,-500.0,9.92e-05,2]
[342420170,1731843032782,-1341.731,9.92e-05,2]
[342420172,1731843032791,-182.29,9.92e-05,2]
[342420174,1731843032801,-150.0,9.92e-05,2]
[342420176,1731843032811,-150.0,9.921e-05,2]
[342420178,1731843032820,-150.0,9.923e-05,2]
[342420180,1731843032829,-150.0,9.923e-05,2]
[342420182,1731843032838,-150.0,9.933e-05,2]
[342420184,1731843032848,-150.0,9.938e-05,2]
[342420186,1731843032857,-150.0,9.947e-05,2]
[342420188,1731843032868,-1000.0,9.953e-05,2]
[342420190,1731843032879,-150.0,9.954e-05,2]
[342420192,1731843032889,-150.0,9.954e-05,2]
[342420194,1731843032898,-150.0,9.958e-05,2]
[342420196,1731843032908,-150.0,9.958e-05,2]
[342420198,1731843032917,-150.0,9.961e-05,2]
[342420200,1731843032927,-150.0,9.966e-05,2]
[342420202,1731843032935,-212.37,9.967e-05,2]
[342420204,1731843032944,-150.0,9.967e-05,2]
[342420206,1731843032954,-150.0,9.968e-05,2]
[342420208,1731843032964,-150.0,9.971e-05,2]
[342420210,1731843032974,-150.0,9.974e-05,2]
[342420212,1731843032984,-150.0,9.976e-05,2]
[342420214,1731843032995,-150.0,9.978e-05,2]
[342420216,1731843033004,-150.0,9.983e-05,2]
[342420218,1731843033014,-150.0,9.986e-05,2]
[342420220,1731843033024,-150.0,9.986e-05,2]
[342420222,1731843033035,-150.0,9.99e-05,2]
[342420224,1731843033045,-150.0,9.99e-05,2]
[342420226,1731843033055,-465.6418926,9.992e-05,2]
[342420228,1731843033064,-658.3060876,9.992e-05,2]
[342420230,1731843033074,-566.1718794,9.992e-05,2]
[342420232,1731843033084,-382.6168041,9.992e-05,2]
[342420234,1731843033093,-1993.0,9.999e-05,2]
[342420236,1731843033103,-628.0,9.999e-05,2]
[342420238,1731843033112,-1925.0,9.999e-05,2]
[342420240,1731843033122,-560.0,9.999e-05,2]
[342420242,1731843033131,-3746.0,9.999e-05,2]
[342420244,1731843033140,-814.0,9.999e-05,2]
[342420246,1731843033150,-1260.0,9.999e-05,2]
[342420248,1731843033160,-921.0,9.999e-05,2]
[342420250,1731843033170,-3491.0,9.999e-05,2]
[342420252,1731843033180,-673.824,9.999e-05,2]
[342420254,1731843033191,-150.0,9.999e-05,2]
[342420256,1731843033201,-631.0,9.999e-05,2]
[342420258,1731843033211,-563.0,9.999e-05,2]
[342420260,1731843033221,-559.54,9.999e-05,2]
[342420262,1731843033231,-402750.1975771,0.0001,2]
[342420264,1731843033243,-16769.4085459,0.0001,2]
[342420266,1731843033252,-5000.00000001,0.0001,2]
[342420268,1731843033262,-467946.4229376,0.0001,2]
[342420270,1731843033275,-1760.0,0.0001,2]
[342420272,1731843033287,-1051.14437944,0.0001,2]
[342420275,1731843033299,-882.8,0.0001,2]
[342420496,1731843037792,-338.639867,9.993e-05,2]
[342420497,1731843037802,-294.6629299,9.993e-05,2]
[342420498,1731843037812,-250.6859927,9.993e-05,2]
[342420499,1731843037821,-8982.29648551,0.0001,2]
[342420500,1731843037831,-1997433.71472489,0.0001,2]
[342420501,1731843037844,-89721.12985611,0.0001,2]
[342420502,1731843037855,-310.24010705,0.0001,2]
[342420503,1731843037870,-4760.0,0.0001,2]
[342420504,1731843037970,-511.40603856,0.0001,2]
[342420505,1731843038008,-14426.6072414,0.0001,2]
[342420506,1731843038020,-31925.2012,0.0001,2]
[342420507,1731843038032,-13565.0,0.0001,2]
[342420508,1731843038044,-24528.90035,0.0001,2]
[342420509,1731843038055,-54170.55,0.0001,2]
[342420510,1731843038067,-9553.154996,0.0001,2]
[342420511,1731843038077,-9084.2900005,0.0001,2]
[342420512,1731843038088,-13724.235,0.0001,2]
[342420513,1731843038099,-1384.75,0.0001,2]
[342420514,1731843038110,-5915.5,0.0001,2]
[342420515,1731843038120,-882.0,0.0001,2]
[342420539,1731843039667,-516.04315364,9.999e-05,2]
[342420540,1731843039747,-739.95684636,9.999e-05,2]
[342420541,1731843039756,-1323716.87149544,0.0001,2]
[342420542,1731843039770,-68870.08833363,0.0001,2]
[342420543,1731843039782,-419.20644506,0.0001,2]
[342420544,1731843039793,-3670.96916241,0.0001,2]
[342420545,1731843039804,-471.33067337,0.0001,2]
[342420546,1731843039905,-1000.0,0.0001,2]
[342420555,1731843043298,-5011.54857736,0.0001,2]
[342420556,1731843043309,-951847.27677697,0.0001,2]
[342420557,1731843043321,-27859.21905305,0.0001,2]
[342420558,1731843043332,-270.28404108,0.0001,2]
[342420559,1731843043343,-884.3700001,0.0001,2]
[342420560,1731843043355,-9091.8474,0.0001,2]
[342420561,1731843043486,-1552580.57154307,0.0001,2]
[342420562,1731843043500,-447421.44875617,0.0001,2]
[342420563,1731843043511,-2272.495225,0.0001,2]
[342420564,1731843043522,-2496.5213391,0.0001,2]
[342420635,1731843045734,-89444.87732816,0.0001,2]
[342420636,1731843045758,-867.0,0.0001,2]
[342420637,1731843045769,-19032.0,0.0001,2]
[342420638,1731843045780,-99803.625,0.0001,2]
[342420639,1731843045829,-2614.10101816,0.0001,2]
[342420640,1731843045840,-540.69427,0.0001,2]
[342420641,1731843045928,-156864.77113594,0.0001,2]
[342420642,1731843045967,-440.08875921,0.0001,2]
[342420643,1731843046106,-9402.45858809,0.0001,2]
[342420644,1731843046118,-8984.14397835,0.0001,2]
[342420882,1731843650070,2318.94,8.219e-05,2]
[342420885,1731843944692,-300.0,8.775e-05,2]
[342420886,1731843944717,-9700.0,8.776e-05,2]
[342420887,1731843948404,-10000.0,8.776e-05,2]
[342420888,1731843953241,-3660.29,8.776e-05,2]
[342420889,1731843953265,-250.0,8.848e-05,2]
[342420890,1731843953288,-264.3,8.909e-05,2]
[342420891,1731843953313,-414.28,8.941e-05,2]
[342420892,1731843953334,-150.0,8.986e-05,2]
[342420893,1731843953356,-250.0,9.021e-05,2]
[342420894,1731843953379,-250.0,9.067e-05,2]
[342420895,1731843953402,-1000.0,9.172e-05,2]
[342420896,1731843953425,-420.0,9.652e-05,2]
[342420897,1731843953448,-152.45,9.67e-05,2]
[342420898,1731843953472,-150.0,9.899e-05,2]
[342420899,1731843953496,-3038.68,9.9e-05,2]
[342420902,1731844026754,861.92755398,4e-05,2]
[342420936,1731844231956,-948.018915,8.953e-05,2]
[342420942,1731844232087,-51.981085,8.953e-05,2]
[342420943,1731844232097,-200.0,9e-05,3]
[342420944,1731844232107,-209.738915,9.006e-05,2]
[342420945,1731844232195,-40.261085,9.006e-05,2]
[342420946,1731844232205,-500.0,9.1e-05,3]
[342420947,1731844232215,-800.0,9.2e-05,3]
[342420948,1731844232225,-361.04716793,9.2e-05,2]
[342420949,1731844232235,-1100.0,9.3e-05,3]
[342420950,1731844232244,-361.04716792,9.3e-05,2]
[342420951,1731844232253,-170.81,9.336e-05,2]
[342420952,1731844232262,-1400.0,9.4e-05,3]
[342420953,1731844232272,-200.0,9.5e-05,3]
[342420954,1731844232281,-200.0,9.6e-05,3]
[342420955,1731844232290,-152.45,9.67e-05,2]
[342420956,1731844232300,-200.0,9.7e-05,3]
[342420957,1731844232309,-200.0,9.8e-05,3]
[342420958,1731844232320,-150.0,9.84e-05,2]
[342420959,1731844232331,-300.0,9.899e-05,2]
[342420960,1731844232342,-13768.6524,9.9e-05,2]
[342420961,1731844232353,-350.658,9.9e-05,2]
[342420962,1731844232362,-981.0,9.9e-05,3]
[342420963,1731844232372,-500.0,9.92e-05,2]
[342420964,1731844232381,-1073.384,9.927e-05,2]
[342420965,1731844232391,-369.4411744,9.991e-05,2]
[342420966,1731844232401,-150.0,9.998e-05,2]
[342420967,1731844232411,-400.0,9.998e-05,2]
[342420968,1731844232420,-400.0,9.998e-05,2]
[342420969,1731844232430,-400.0,9.998e-05,2]
[342420970,1731844232442,-154.89515351,9.998e-05,2]
[342420971,1731844232452,-400.0,9.998e-05,2]
[342420972,1731844232462,-400.0,9.998e-05,2]
[342420973,1731844232471,-400.0,9.998e-05,2]
[342420974,1731844232481,-400.0,9.998e-05,2]
[342420975,1731844232490,-400.0,9.998e-05,2]
[342420976,1731844232500,-400.0,9.998e-05,2]
[342420977,1731844232509,-400.0,9.998e-05,2]
[342420978,1731844232519,-400.0,9.998e-05,2]
[342420979,1731844232529,-400.0,9.998e-05,2]
[342420980,1731844232538,-400.0,9.999e-05,2]
[342420981,1731844232548,-400.0,9.999e-05,2]
[342420982,1731844232558,-400.0,9.999e-05,2]
[342420983,1731844232568,-1256.0,9.999e-05,2]
[342420984,1731844232577,-1993.0,9.999e-05,2]
[342420985,1731844232586,-628.0,9.999e-05,2]
[342420987,1731844232595,-560.0,9.999e-05,2]
[342420989,1731844232605,-1925.0,9.999e-05,2]
[342420991,1731844232615,-814.0,9.999e-05,2]
[342420992,1731844232624,-3746.0,9.999e-05,2]
[342420994,1731844232633,-1260.0,9.999e-05,2]
[342420996,1731844232642,-921.0,9.999e-05,2]
[342420997,1731844232652,-857.767,9.999e-05,2]
[342420998,1731844232661,-150.0,9.999e-05,2]
[342420999,1731844232671,-250.0,9.999e-05,2]
[342421000,1731844232680,-400.0,9.999e-05,2]
[342421001,1731844232692,-324.7479616,9.999e-05,2]
[342421002,1731844232996,-75.2520384,9.999e-05,2]
[342421003,1731844233006,-400.0,9.999e-05,2]
[342421004,1731844233016,-536.23,9.999e-05,2]
[342421005,1731844233026,-4174.5181616,0.0001,2]
[342421006,1731844233038,-906.83,0.0001,2]